{"text_format":"1","workbook":"xlsx","n_sheets":4,"sheets":["Instructivo","Insumos","Memoria de Cálculo","Resultados"],"not_rendered":{"charts":0,"images":5,"macros":1,"external_links":4,"defined_names":51,"comments":0,"pivot_tables":0},"unopened":[],"bounds":{"document_bytes":16777216,"sheet_cells":100000,"rows_first":2000,"rows_last":500,"rows_between":2000,"halvings":0,"cell_chars":16384,"cell_head_chars":4096},"cells_cut":0,"cells_raw":0,"read":"whole","date_system":"1900"}

{"sheet":"Instructivo","index":0,"n_rows":76,"n_cols":5,"rows_kept":76,"cut":false,"hidden":false,"merged":[[6,1,6,4]]}
[]
[]
[]
[]
[]
[]
[null,"Tabla I.10. Estudio Viabilidad"]
[]
[null,"Pestaña-Sección","Campo","Descripción","Observaciones"]
[null,"Insumos-Información ","Número de Contrato o Asignación","Número de Contrato o Asignación"]
[null,"Insumos-Información ","Operador","Operador Petrolero responsable de la información ingresada a la CNH"]
[null,"Insumos-Información ","Área Contractual o Área de Asignación","Nombre del Área Contractual o Área de Asignación asociada a la información ingresada"]
[null,"Insumos-Información ","Fecha de Presentación","Fecha de elaboración del archivo","Usar el formato aaaa-mm-dd, donde: \naaaa: Año de elaboración del archivo\nmm: Mes de elaboración del archivo\ndd: Día de elaboración del archivo"]
[null,"Insumos-Frecuencia de Insumos","Frecuencia de Insumos","El Operador Petrolero deberá identificar en el formato la frecuencia de la serie de datos que presente (Mensual o Anual","El formato da la opción de seleccionar la frecuencia de los datos: anual o mensual."]
[null,"Insumo-Área Contractual o de la Asignación","Área km2","Superficie original del Área Contractual","Las unidades deben ser Kilómetros cuadrados"]
[null,"Insumo-Polígono de Extracción","Área km2","Superficie del Polígono de Extracción","Las unidades deben ser Kilómetros cuadrados"]
[null,"Insumo-Vigencia del Contrato o Asignación","Año","Año en que se tiene la Vigencia del Contrato o de la Asignación","La información presentada en este archivo, para el Proyecto o Plan, deberá considerar el año de la Vigencia del Contrato o Asignación. Se recomienda que la información no exceda el año de la Vigencia correspondiente."]
[null,"Insumo-Límite económico después de derechos, contraprestaciones e impuestos","Año","Año en que se tiene el Límite económico, de acuerdo a los datos ingresados y a los resultados obtenidos en la evaluación económica del Proyecto o Plan evaluado","La información presentada en este archivo, para el Proyecto o Plan, deberá considerar el año del Límite económico calculado, de tal forma que, no exceda este límite."]
[null,"Insumo-Grados API del petróleo o condensados","°API","Grados API de los hidrocarburos líquidos a producir y vender.","Dato utilizado en la estimación del precio del petróleo."]
[null,"Insumo-Porcentaje promedio ponderado de contenido de azufre en el petróleo","%","Contenido de azufre promedio ponderado por \nvolumen","Dato utilizado en la estimación del precio del petróleo."]
[null,"Insumo-Poder calorífico del gas","MMBtu/MMpc","Poder calorífico del gas","Dato utilizado en la estimación del precio del gas"]
[null,"Insumo-Equivalencia gas-petróleo crudo equivalente","Mpc/bpce","Factor BOE (equivalencia del gas en barriles de petróleo crudo equivalente)","Dato utilizado en el cálculo de volumen de petróleo crudo equivalente del Proyecto o Plan"]
[null,"Insumos-Operación","Año-mes","identificador del mes y año ","El contratista deberá identificar con mes y año, de acuerdo a la frecuencia de los datos, el periodo en el que se reportan los datos.\n\n-Si la frecuencia de datos es Anual, se deberá reportar con el formato AAAA. Siendo el Periodo 1 el año en el que se firmo el Contrato. \nEjemplo: Periodo 1 = 2016\n\n-Si la frecuencia de datos es Mensual, se deberá reportar con el formato mm-AAAA. Siendo el Periodo 1 el mes y año en el que se firmo el Contrato. \nEjemplo: Periodo 1: 08-2016 (Agosto 2016)"]
[null,"Insumos-Operación","Precio petróleo ($/b)","Valor Monetario en Dólares que se asigne por unidad de medida al Petróleo","Precio Contractual del Petróleo en el Periodo\n\nEl precio del petróleo se determinará de conformidad con lo establecido en el reporte anual por el que la Secretaría de Hacienda y Crédito Público establece los rangos de valores de los términos económicos de los Contratos para la Exploración y Extracción de Hidrocarburos (Reporte Anual), para la determinación del precio contractual, considerando la calidad del petróleo extraído en el área correspondiente medido a través de los grados API y el contenido de azufre por volumen. "]
[null,"Insumos-Operación","Precio gas ($/mpc)","Valor Monetario en Dólares que se asigne por unidad de medida al Gas Natural","Precio Contractual del Gas Natural en el Periodo\n\nÍndice de referencia de precios de Gas Natural al mayoreo correspondiente a la Región en la que se localiza el Área Contractual o el Área de Asignación, publicado para el mes anterior a la fecha en la que se presenta el Plan de Desarrollo para la Extracción, por la Comisión Reguladora de Energía en el siguiente enlace: http://www.cre.gob.mx/IPGN/index.html, convertido a dólares/mil pies cúbicos (1 pie cúbico = 1.03 mil btu)."]
[null,"Insumos-Operación","Precio condensados ($/b)","Valor Monetario en Dólares que se asigne por unidad de medida al Condensados","Precio Contractual de los Condensados en el Periodo.\n\nEl precio de los condensados se determinará de conformidad con lo establecido en el reporte anual por el que la Secretaría de Hacienda y Crédito Público establece los rangos de valores de los términos económicos de los Contratos para la Exploración y Extracción de Hidrocarburos (Reporte Anual), para la determinación del precio contractual, el precio del crudo marcador de referencia Brent."]
[null,"Insumos-Operación","Tipo de Cambio (MXP/USD)","Tasa que marca la relación entre el valor de Pesos de México y Dólares de Estados Unidos","El Operador Petrolero deberá indicar el tipo de cambio programado para cada periodo.\n\nTasa que marca la relación entre el valor de pesos de México y Dólares de Estados Unidos de América para solventar obligaciones, promedio de los dos meses calendario anteriores a la fecha en la que se presenta el Plan de Desarrollo para la Extracción. Publicada por el Banco de México."]
[null,"Insumos-Operación","Inflación Consumidor (%)","Tasa que indica la variación en los precios al consumidor","La tasa que se reporte tendrá que ser la utilizada por el Operador Petrolero para evaluar la rentabilidad del Proyecto en cada periodo. El año base deberá ser en el que se firmó el Contrato.\n\nSi la frecuencia de los periodos es mensual, la tasa que se reporte deberá ser la inflación acumulada en el año calendario. Si la frecuencia de los periodos es anual, la tasa que se reporte deberá ser la inflación anual del año calendario. "]
[null,"Insumos-Operación","Inflación Productor (%)","Tasa que indica la variación en los precios al Productor","La tasa que se reporte tendrá que ser la utilizada por el Operador Petrolero para evaluar la rentabilidad del Proyecto en cada periodo. El año base deberá ser en el que se firmó el Contrato.\n\nSi la frecuencia de los periodos es mensual, la tasa que se reporte deberá ser la inflación acumulada en el año calendario. Si la frecuencia de los periodos es anual, la tasa que se reporte deberá ser la inflación anual del año calendario. "]
[null,"Insumos-Operación","Tasa de Descuento (%)","Tasa de interés utilizada para descontar los flujos de efectivo para determinar el valor presente de trabajo.","La tasa que se reporte tendrá que ser la utilizada por el Operador Petrolero para evaluar la rentabilidad del Proyecto en cada periodo. \nLa tasa que se reporte deberá ser la anual, sin importar la frecuencia de los periodos.\nLa tasa de descuento anual, mínima, establecida es de 10%."]
[null,"Insumos-Operación","Área Devuelta (%)","Porcentaje de Área devuelta en el periodo.","El Operador Petrolero deberá reportar el porcentaje de la superficie original del Área Contractual que tiene programado devolver en cada periodo. "]
[null,"Insumos-Operación","Producción Aceite (mmb/año o mmb/mes)","Volumen total de Petróleo extraído por el Operador Petrolero del Área Contractual que genere el pago de contraprestaciones a favor del Estado. ","El Operador Petrolero deberá reportar la producción de Petróleo en el Área Contractual manteniendo concordancia entre unidades y frecuencia del periodo.\n\nSi la frecuencia del periodo es anual, las unidades deberán ser millones de barriles anuales. En caso de periodos mensuales, la unidad deberá ser miles de barriles al mes."]
[null,"Insumos-Operación","Producción Gas (mmmpc/año o mmmpc/mes)","Volumen total de Gas Natural extraído por el Operador Petrolero del Área Contractual que genere el pago de contraprestaciones a favor del Estado. ","El Operador Petrolero deberá reportar la producción esperada de gas Natural en el Área Contractual manteniendo concordancia entre unidades y frecuencia del periodo.\n\nSi la frecuencia del periodo es anual, las unidades deberán ser miles de millones de pies cúbicos anuales. En caso de periodos mensuales, la unidad deberá ser millones de pies cúbicos al mes."]
[null,"Insumos-Operación","Producción Gas para venta (mmmpc/año o mmmpc/mes)","Volumen total de Gas Natural considerado para venta por el Operador Petrolero del Área Contractual, que genere ingresos para el Operador. ","El Operador Petrolero deberá reportar el volumen esperado de venta de gas Natural en el Área Contractual manteniendo concordancia entre unidades y frecuencia del periodo.\n\nSi la frecuencia del periodo es anual, las unidades deberán ser miles de millones de pies cúbicos anuales. En caso de periodos mensuales, la unidad deberá ser millones de pies cúbicos al mes."]
[null,"Insumos-Operación","Producción Condensados (mmb/año o mmmb/mes)","Volumen total de Condensados extraído por el Operador Petrolero del Área Contractual que genere el pago de contraprestaciones a favor del Estado. ","El Operador Petrolero deberá reportar la producción esperada de Condensados en el Área Contractual manteniendo concordancia entre unidades y frecuencia del periodo.\n\nSi la frecuencia del periodo es anual, las unidades deberán ser millones de barriles anuales. En caso de periodos mensuales, la unidad deberá ser miles de barriles al mes."]
[null,"Insumos-Operación","Costos que se deprecien al 100 % (mmusd)","Costos operativos variables considerados en la evaluación económica","Monto de inversiones realizadas en el periodo, que de acuerdo a los Artículos 32, 40 y 46 de la Ley de Ingresos Sobre Hidrocarburos se deducen al 100 % para el Pago del Derecho por la Utilidad Compartida y del Impuesto Sobre la Renta.\nEl monto que se reporte deberá estar en millones de dólares de los Estados Unidos."]
[null,"Insumos-Operación","Costos que se deprecian al 25 % (mmusd)","Costos operativos fijos considerados en la evaluación económica","Monto de inversiones realizadas en el periodo, que de acuerdo a los Artículos 32, 40 y 46 de la Ley de Ingresos Sobre Hidrocarburos se deducen al 25 % para el Pago del Derecho por la Utilidad Compartida y del Impuesto Sobre la Renta.\nEl monto que se reporte deberá estar en millones de dólares de los Estados Unidos."]
[null,"Insumos-Operación","Costos que se deprecian al 10 % (mmusd)","Costos operativos fijos considerados en la evaluación económica","Monto de inversiones realizadas en el periodo, que de acuerdo a los Artículos 32, 40 y 46 de la Ley de Ingresos Sobre Hidrocarburos se deducen al 10 % para el Pago del Derecho por la Utilidad Compartida y del Impuesto Sobre la Renta.\nEl monto que se reporte deberá estar en millones de dólares de los Estados Unidos."]
[null,"Insumos-Operación","Costos de Abandono (mmusd)","Costos de abandono considerados en la evaluación económica. ","Costo estimado de las actividades de retiro y desmantelamiento de los materiales y equipo utilizados por el Operador Petrolero en la realización de las actividades petroleras, así como la restauración Ambiental en el Área Contractual.\nDependiendo del Proyecto o Plan, podrán reportarse las aportaciones al Fideicomiso de Abandono en vez de los costos por las actividades de abandono.\nEl monto que se reporte deberá estar en millones de dólares de los Estados Unidos."]
[null,"Insumos-Información adicional","Información adicional de la evaluación económica","Ingresar información adicional de la evaluación económica, que no esté considerada en las filas anteriores","Ingresar información adicional de la evaluación económica, que no esté considerada en las filas anteriores. Por ejemplo: Otros ingresos, otros egresos, volumen de compra de gas, precios de compra de gas, costo de compra de gas, volumen de compra de compra de crudo ligero, precio de compra de crudo ligero, costo por compra de crudo ligero, volumen de venta de gas de BN, precios de venta de gas de BN, etc."]
[null,"Memoria de Cálculo","Memorial de Cálculo (Pestaña)","Pestaña en la que el Operador Petrolero deberá entregar la memoria de cálculo de la evaluación económica del proyecto realizado. ","El Operador Petrolero solamente deberá llenar las secciones correspondientes de acuerdo al Contrato o Asignación que se reporte. El monto que se reporte deberá estar en millones de dólares de los Estados Unidos."]
[null,"Memoria de Cálculo-Ingresos a favor del Estado - Contratos","Cuota Contractual para la Fase Exploratoria","De acuerdo al Artículo 23 de la Ley de Ingresos Sobre Hidrocarburos. ","El cálculo de esta contraprestación deberá contemplar variación de los parámetros establecidos en la Ley de Ingresos Sobre Hidrocarburos y su Contrato, de acuerdo a los pronósticos para inflación realizados por el Operador Petrolero. El monto que se reporte deberá estar en millones de dólares de los Estados Unidos."]
[null,"Memoria de Cálculo-Ingresos a favor del Estado - Contratos","Regalía al Valor Contractual del Petróleo","De acuerdo al Artículo 24 de la Ley de Ingresos Sobre Hidrocarburos. ","El cálculo de esta contraprestación deberá contemplar variación de los parámetros establecidos en la Ley de Ingresos Sobre Hidrocarburos y su Contrato, de acuerdo a los pronósticos para inflación realizados por el Operador Petrolero. El monto que se reporte deberá estar en millones de dólares de los Estados Unidos."]
[null,"Memoria de Cálculo-Ingresos a favor del Estado - Contratos","Regalía al Valor Contractual del Gas Natural Asociado","De acuerdo al Artículo 24 de la Ley de Ingresos Sobre Hidrocarburos. ","El cálculo de esta contraprestación deberá contemplar variación de los parámetros establecidos en la Ley de Ingresos Sobre Hidrocarburos y su Contrato, de acuerdo a los pronósticos para inflación realizados por el Operador Petrolero. El monto que se reporte deberá estar en millones de dólares de los Estados Unidos."]
[null,"Memoria de Cálculo-Ingresos a favor del Estado - Contratos","Regalía al Valor Contractual del Gas Natural No Asociado","De acuerdo al Artículo 24 de la Ley de Ingresos Sobre Hidrocarburos. ","El cálculo de esta contraprestación deberá contemplar variación de los parámetros establecidos en la Ley de Ingresos Sobre Hidrocarburos y su Contrato, de acuerdo a los pronósticos para inflación realizados por el Operador Petrolero. El monto que se reporte deberá estar en millones de dólares de los Estados Unidos."]
[null,"Memoria de Cálculo-Ingresos a favor del Estado - Contratos","Regalía al Valor Contractual de los Condensados","De acuerdo al Artículo 24 de la Ley de Ingresos Sobre Hidrocarburos. ","El cálculo de esta contraprestación deberá contemplar variación de los parámetros establecidos en la Ley de Ingresos Sobre Hidrocarburos y su Contrato, de acuerdo a los pronósticos para inflación realizados por el Operador Petrolero. El monto que se reporte deberá estar en millones de dólares de los Estados Unidos."]
[null,"Memoria de Cálculo-Ingresos a favor del Estado - Contratos-Licencias","Bono a la firma","De acuerdo al Artículo 7 de la Ley de Ingresos Sobre Hidrocarburos. ","Dicha contraprestación será determinada por la Secretaría para cada contrato y su monto, así como sus condiciones de pago, serán las establecidas en las bases de licitación. El monto que se reporte deberá estar en millones de dólares de los Estados Unidos."]
[null,"Memoria de Cálculo-Ingresos a favor del Estado - Contratos-Licencias","Ajuste a Tasa al Valor Contractual de los Hidrocarburos","De acuerdo al Artículo 10 de la Ley de Ingresos Sobre Hidrocarburos se deberá reportar el ajuste al cobro de la Regalía al Valor Contractual de Hidrocarburos","La metodología para calcular el ajuste a la Tasa básica de Regalía, deberá estar acorde a la metodología del Anexo referente al Procedimiento para determinar las Contraprestaciones del Estado incluido en el Contrato."]
[null,"Memoria de Cálculo-Ingresos a favor del Estado - Contratos-Producción Compartida","Determinación Porcentaje de Utilidad Operativa","De acuerdo al Artículo 17 de la Ley de Ingresos Sobre Hidrocarburos se deberá la Utilidad Operativa del Proyecto en casa periodo.","La metodología para calcular la Utilidad Operativa, deberá estar acorde con la metodología del Anexo referente al Procedimiento para determinar las Contraprestaciones del Estado incluido en el Contrato. El monto deberá estar en millones de dólares de los Estados Unidos. "]
[null,"Memoria de Cálculo-Ingresos a favor del Estado - Contratos-Producción Compartida","Determinación de Utilidad Operativa","De acuerdo al Artículo 11, inciso c) de la Ley de Ingresos Sobre Hidrocarburos se deberá reportar el monto que corresponda al Estado como porcentaje de la Utilidad Operativa.","La metodología para calcular el monto de la Utilidad Operativa que le corresponde al Estado, deberá estar acorde con la metodología del Anexo referente al Procedimiento para determinar las Contraprestaciones del Estado incluido en el Contrato. El monto deberá estar en millones de dólares de los Estados Unidos."]
[null,"Memoria de Cálculo-Ingresos a favor del Estado - Contratos-Producción Compartida","Recuperación de Costos","De acuerdo al Artículo 16 de la Ley de Ingresos Sobre Hidrocarburos se deberá reportar el monto dentro de la Evaluación Económica que corresponda a la Recuperación de Costos en cada periodo.","El monto de los Costos que puedan ser reconocidos como recuperables en el periodo, de acuerdo con la metodología de los Anexos referentes al Procedimiento para determinar las Contraprestaciones del Estado y Procedimientos de Contabilidad, de Registro y Recuperación de Costos, incluidos en el Contrato. "]
[null,"Memoria de Cálculo-Ingresos a favor del Estado - Contratos-Producción Compartida","Acarreo de Costos Recuperables","De acuerdo al Artículo 16 de la Ley de Ingresos Sobre Hidrocarburos se deberá reportar el monto que corresponda al acarreo de Recuperación de Costos para siguientes periodos.","De acuerdo al límite de Recuperación de Costos de cada Contrato, el monto por Recuperar que el Contratista no haya podido recuperar en el periodo y pueda recuperar en periodos subsecuentes. "]
[null,"Memoria de Cálculo-Ingresos a favor del Estado - Contratos - Contratos de Servicios","Contraprestaciones a favor del Estado","De acuerdo al Artículo 21 de la Ley de Ingresos Sobre Hidrocarburos. ","La metodología para calcular el monto de la Utilidad Operativa que le corresponde al Estado, deberá estar acorde con la metodología del Anexo referente al Procedimiento para determinar las Contraprestaciones del Estado incluido en el Contrato. El monto deberá estar en millones de dólares de los Estados Unidos."]
[null,"Memoria de Cálculo-Ingresos a favor del Estado - Contratos - Contratos de Servicios","Contraprestaciones a favor del Contratista","De acuerdo al Artículo 22 de la Ley de Ingresos Sobre Hidrocarburos. ","La metodología para calcular el monto de la Utilidad Operativa que le corresponde al Contratista, deberá estar acorde con la metodología del Anexo referente al Procedimiento para determinar las Contraprestaciones del Contratista incluido en el Contrato. El monto deberá estar en millones de dólares de los Estados Unidos."]
[null,"Memoria de Cálculo-Ingresos a favor del Estado - Contratos-Impuesto Sobre la Renta","Deducciones Pago ISR","De acuerdo al Artículo 32 de la Ley de Ingresos Sobre Hidrocarburos. ","La metodología para el cálculo de las deducciones deberá estar acorde con el artículo 32 de la LISH, clasificando el porcentaje a deducir del monto original con base en el rubro al que pertenezcan las inversiones realizadas. El monto deberá estar en millones de dólares de los Estados Unidos."]
[null,"Memoria de Cálculo-Ingresos a favor del Estado - Contratos-Impuesto para la Actividad de Exploración y Extracción de Hidrocarburos","Impuesto por la Actividad de Exploración y Extracción de Hidrocarburos","De acuerdo al Artículo 54 de la Ley de Ingresos Sobre Hidrocarburos. ","La metodología para calcular el monto del IEEH, deberá estar acorde con el artículo 55 de la LISH y con la variación de las cuotas en el Índice Nacional de Precios al Consumidor. El monto deberá estar en millones de dólares de los Estados Unidos."]
[null,"Memoria de Cálculo-Ingresos a favor del Estado - Asignaciones-Derecho de Extracción de Hidrocarburos","Derecho de Extracción al valor del Petróleo","De acuerdo al Artículo 44 de la Ley de Ingresos Sobre Hidrocarburos. ","La metodología para calcular el monto del DEXTH, deberá estar acorde con la metodología indicada en el inciso I. del artículo 44 de la LISH y con la variación de las tasas en el Índice de Precios al Productor de Estados Unidos de América o el que lo sustituya. El monto deberá estar en millones de dólares de los Estados Unidos."]
[null,"Memoria de Cálculo-Ingresos a favor del Estado - Asignaciones-Derecho de Extracción de Hidrocarburos","Derecho de Extracción al valor del Gas Natural Asociado","De acuerdo al Artículo 44 de la Ley de Ingresos Sobre Hidrocarburos. ","La metodología para calcular el monto del DEXTH, deberá estar acorde con la metodología indicada en el inciso II.a) del artículo 44 de la LISH y con la variación de las tasas en el Índice de Precios al Productor de Estados Unidos de América o el que lo sustituya. El monto deberá estar en millones de dólares de los Estados Unidos."]
[null,"Memoria de Cálculo-Ingresos a favor del Estado - Asignaciones-Derecho de Extracción de Hidrocarburos","Derecho de Extracción al valor del Gas Natural No Asociado","De acuerdo al Artículo 44 de la Ley de Ingresos Sobre Hidrocarburos. ","La metodología para calcular el monto del DEXTH, deberá estar acorde con la metodología indicada en el inciso II.b) del artículo 44 de la LISH y con la variación de las tasas en el Índice de Precios al Productor de Estados Unidos de América o el que lo sustituya. El monto deberá estar en millones de dólares de los Estados Unidos."]
[null,"Memoria de Cálculo-Ingresos a favor del Estado - Asignaciones-Derecho de Extracción de Hidrocarburos","Derecho de Extracción al valor de los Condensados","De acuerdo al Artículo 44 de la Ley de Ingresos Sobre Hidrocarburos. ","La metodología para calcular el monto del DEXTH, deberá estar acorde con la metodología indicada en el inciso III. del artículo 44 de la LISH y con la variación de las tasas en el Índice de Precios al Productor de Estados Unidos de América o el que lo sustituya. El monto deberá estar en millones de dólares de los Estados Unidos."]
[null,"Memoria de Cálculo-Ingresos a favor del Estado - Asignaciones - Derecho de Exploración de Hidrocarburos","Derecho de Exploración de Hidrocarburos","De acuerdo al Artículo 45 de la Ley de Ingresos Sobre Hidrocarburos. ","La metodología para calcular el monto del DEXPH, deberá estar acorde con el artículo 45 de la LISH y con la actualización de las cuotas en el Índice Nacional de Precios al Consumidor. El monto deberá estar en millones de dólares de los Estados Unidos."]
[null,"Memoria de Cálculo-Ingresos a favor del Estado - Asignaciones - Derecho por la Utilidad Compartida","Derecho por la Utilidad Compartida","De acuerdo al Artículo 39 de la Ley de Ingresos Sobre Hidrocarburos. ","La metodología para calcular el monto del DUC, deberá estar acorde con el artículo 39 de la LISH. El monto deberá estar en millones de dólares de los Estados Unidos."]
[null,"Memoria de Cálculo-Ingresos a favor del Estado - Asignaciones - Derecho por la Utilidad Compartida","Deducciones Pago DUC","De acuerdo al Artículo 40 de la Ley de Ingresos Sobre Hidrocarburos. ","La metodología para el cálculo de las deducciones deberá estar acorde con el artículo 40 de la LISH, clasificando el porcentaje a deducir del monto original con base en el rubro al que pertenezcan las inversiones realizadas. El monto deberá estar en millones de dólares de los Estados Unidos."]
[null,"Memoria de Cálculo-Ingresos a favor del Estado - Asignaciones - Derecho por la Utilidad Compartida","Límite deducciones DUC","De acuerdo al Artículo 41 de la Ley de Ingresos Sobre Hidrocarburos. ","Los límites para las deducciones mencionadas en el artículo 40 de la LISH, deberán ser establecidos con base en los porcentajes mencionados en el artículo 41 de la LISH. "]
[null,"Memoria de Cálculo-Ingresos a favor del Estado - Asignaciones - ISR","Deducciones Pago ISR","De acuerdo al Artículo 46 de la Ley de Ingresos Sobre Hidrocarburos. ","La metodología para el cálculo de las deducciones deberá estar acorde con el artículo 46 de la LISH, clasificando el porcentaje a deducir del monto original con base en el rubro al que pertenezcan las inversiones realizadas. El monto deberá estar en millones de dólares de los Estados Unidos."]
[null,"Resultados - Resultados","Flujo de Efectivo antes de Derechos, Contraprestaciones e Impuestos a favor del Estado.","Flujo de Efectivo antes de derechos, contraprestaciones e impuestos a favor del Estado. Valor de los flujos de efectivo sin considerar el régimen fiscal del Contrato o Asignación durante la vida del proyecto, sin considerar la tasa de descuento.","Los resultados deberán ser indicados en millones de dólares de los Estados Unidos. "]
[null,"Resultados - Resultados","Flujo de Efectivo del Contratista/Asignatario después de Derechos, Contraprestaciones e Impuestos a favor del Estado.","Flujo de Efectivo después de derechos, contraprestaciones e impuestos a favor del Estado. Valor de los flujos de efectivo considerando el régimen fiscal del Contrato o Asignación durante la vida del proyecto, sin considerar la tasa de descuento.","Los resultados deberán ser indicados en millones de dólares de los Estados Unidos. "]
[null,"Resultados - Resultados","VPN antes de Derechos, Contraprestaciones e Impuestos a favor del Estado.","Valor Presente Neto antes de derechos, contraprestaciones e impuestos a favor del Estado. Valor de los flujos de efectivo sin considerar el régimen fiscal del Contrato o Asignación durante la vida del proyecto, considerando la tasa de descuento. Sobre el ingreso operativo.","Los resultados deberán ser indicados en millones de dólares de los Estados Unidos. "]
[null,"Resultados - Resultados","VPN del Contratista/Asignatario después de Derechos, Contraprestaciones e Impuestos a favor del Estado.","Valor Presente Neto del Operador después de derechos, contraprestaciones e impuestos a favor del Estado. Valor de los flujos de efectivo considerando el régimen fiscal del Contrato o Asignación durante la vida del proyecto, considerando la tasa de descuento.","Los resultados deberán ser indicados en millones de dólares de los Estados Unidos. "]
[null,"Resultados - Resultados","VPI","Valor Presente de las Inversiones. Valor de los flujos de inversión (Capex) durante la vigencia del Proyecto, considerando la tasa de descuento del periodo.","Los resultados deberán ser indicados en millones de dólares de los Estados Unidos. "]
[null,"Resultados - Resultados","Relación VPN/VPI antes de Derechos, Contraprestaciones e Impuestos a favor del Estado.","Relación (cociente) entre el Valor Presente Neto (antes de Derechos, Contraprestaciones e Impuestos  a favor del Estado e Impuestos) y el Valor Presente de las Inversiones. Considerando la tasa de descuento.","Adimensional."]
[null,"Resultados - Resultados","Relación VPN/VPI después de Derechos, Contraprestaciones e Impuestos a favor del Estado.","Relación (cociente) entre el Valor Presente Neto (después de Derechos, Contraprestaciones e Impuestos  a favor del Estado e Impuestos) y el Valor Presente de las Inversiones. Considerando la tasa de descuento.","Adimensional."]
[null,"Resultados - Resultados","Relación Beneficio/Costo antes de Derechos, Contraprestaciones e Impuestos a favor del Estado.","Relación (cociente) entre el Valor Presente de los ingresos totales del Proyecto (Ingresos por venta de los Hidrocarburos) y el Valor Presente de los egresos totales del Proyecto antes del pago de Derechos, Contraprestaciones e Impuestos a favor del Estado. Considerando la tasa de descuento.","Adimensional."]
[null,"Resultados - Resultados","Relación Beneficio/Costo después de Derechos, Contraprestaciones e Impuestos a favor del Estado.","Relación (cociente) entre el Valor Presente de los ingresos totales del Proyecto (Ingresos por venta de los Hidrocarburos) y el Valor Presente de los egresos totales del Proyecto después del pago de Derechos, Contraprestaciones e Impuestos a favor del Estado. Considerando la tasa de descuento.","Adimensional."]
[null,"Resultados - Resultados","TIR antes de Derechos, Contraprestaciones e Impuestos a favor del Estado.","Tasa Interna de Retorno. Tasa de descuento que genera un VPN antes de Derechos, Contraprestaciones e Impuestos a favor del Estado igual a cero.\nSe estima sobre el flujo de efectivo del contratista, antes de Derechos, Contraprestaciones e Impuestos a favor del Estado.","El resultado deberá presentarse como porcentaje."]
[null,"Resultados - Resultados","TIR después de Derechos, Contraprestaciones e Impuestos a favor del Estado.","Tasa Interna de Retorno. Tasa de descuento que genera un VPN después de Derechos, Contraprestaciones e Impuestos a favor del Estado igual a cero.\nSe estima sobre el flujo de efectivo del contratista, después de Derechos, Contraprestaciones e Impuestos a favor del Estado.","El resultado deberá presentarse como porcentaje."]

{"sheet":"Insumos","index":1,"n_rows":54,"n_cols":2582,"rows_kept":54,"cut":false,"hidden":false,"merged":[[27,0,50,0],[17,0,18,0],[17,1,18,1],[21,0,24,0],[7,0,7,6]]}
[]
[]
[]
[]
[]
[]
[]
[]
[]
["Evaluación Económica"]
["Información:"]
["Número de Contrato o Asignación:"]
["Operador:"]
["Área Contractual o Área de Asignación:"]
["Fecha Presentación:"]
[]
[]
["Seleccionar si la información a introducir es Anual o Mensual -->               ","Frecuencia Insumos",null,"Anual"]
[null,null,1,"Mensual"]
[]
[null,"Dato",null,null,"Dato",null,"Unidad"]
["Introducir los datos en las celdas sombreadas, de acuerdo a las unidades establecidas.\n","Área Contractual o de la Asignación (km2)",null,null,"Grados API del petróleo o condensados",null,"°API"]
[null,"Polígono de Extracción (km2)",null,null,"Porcentaje promedio ponderado de contenido de azufre en el petróleo",null,"%"]
[null,"Vigencia del Contrato o Asignación (año)",null,null,"Poder calorífico del gas",null,"MMBtu/MMpc"]
[null,"Límite económico después de derechos, contraprestaciones e impuestos (año)",null,null,"Equivalencia gas-petróleo crudo equivalente",null,"Mpc/bpce"]
[null,null,null,null,null,null,null,null,null,null,null,"Ingreso Operativo Descontado"]
[null,"Operación / Periodo",1,2,3,4,5,6,7,8,9,10,11,12,13,14,15,16,17,18,19,20,21,22,23,24,25,26,27,28,29,30,31,32,33,34,35,36,37,38,39,40,41,42,43,44,45,46,47,48,49,50,51,52,53,54,55,56,57,58,59,60,61,62,63,64,65,66,67,68,69,70,71,72,73,74,75,76,77,78,79,80,81,82,83,84,85,86,87,88,89,90,91,92,93,94,95,96,97,98,99,100,101,102,103,104,105,106,107,108,109,110,111,112,113,114,115,116,117,118,119,120,121,122,123,124,125,126,127,128,129,130,131,132,133,134,135,136,137,138,139,140,141,142,143,144,145,146,147,148,149,150,151,152,153,154,155,156,157,158,159,160,161,162,163,164,165,166,167,168,169,170,171,172,173,174,175,176,177,178,179,180,181,182,183,184,185,186,187,188,189,190,191,192,193,194,195,196,197,198,199,200,201,202,203,204,205,206,207,208,209,210,211,212,213,214,215,216,217,218,219,220,221,222,223,224,225,226,227,228,229,230,231,232,233,234,235,236,237,238,239,240,241,242,243,244,245,246,247,248,249,250,251,252,253,254,255,256,257,258,259,260,261,262,263,264,265,266,267,268,269,270,271,272,273,274,275,276,277,278,279,280,281,282,283,284,285,286,287,288,289,290,291,292,293,294,295,296,297,298,299,300,301,302,303,304,305,306,307,308,309,310,311,312,313,314,315,316,317,318,319,320,321,322,323,324,325,326,327,328,329,330,331,332,333,334,335,336,337,338,339,340,341,342,343,344,345,346,347,348,349,350,351,352,353,354,355,356,357,358,359,360,361,362,363,364,365,366,367,368,369,370,371,372,373,374,375,376,377,378,379,380,381,382,383,384,385,386,387,388,389,390,391,392,393,394,395,396,397,398,399,400,401,402,403,404,405,406,407,408,409,410,411,412,413,414,415,416,417,418,419,420,421,422,423,424,425,426,427,428,429,430,431,432,433,434,435,436,437,438,439,440,441,442,443,444,445,446,447,448,449,450,451,452,453,454,455,456,457,458,459,460,461,462,463,464,465,466,467,468,469,470,471,472,473,474,475,476,477,478,479,480,481,482,483,484,485,486,487,488,489,490,491,492,493,494,495,496,497,498,499,500,501,502,503,504,505,506,507,508,509,510,511,512,513,514,515,516,517,518,519,520,521,522,523,524,525,526,527,528,529,530,531,532,533,534,535,536,537,538,539,540,541,542,543,544,545,546,547,548,549,550,551,552,553,554,555,556,557,558,559,560,561,562,563,564,565,566,567,568,569,570,571,572,573,574,575,576,577,578,579,580,581,582,583,584,585,586,587,588,589,590,591,592,593,594,595,596,597,598,599,600,601,602,603,604,605,606,607,608,609,610,611,612,613,614,615,616,617,618,619,620,621,622,623,624,625,626,627,628,629,630,631,632,633,634,635,636,637,638,639,640,641,642,643,644,645,646,647,648,649,650,651,652,653,654,655,656,657,658,659,660,661,662,663,664,665,666,667,668,669,670,671,672,673,674,675,676,677,678,679,680,681,682,683,684,685,686,687,688,689,690,691,692,693,694,695,696,697,698,699,700,701,702,703,704,705,706,707,708,709,710,711,712,713,714,715,716,717,718,719,720,721,722,723,724,725,726,727,728,729,730,731,732,733,734,735,736,737,738,739,740,741,742,743,744,745,746,747,748,749,750,751,752,753,754,755,756,757,758,759,760,761,762,763,764,765,766,767,768,769,770,771,772,773,774,775,776,777,778,779,780,781,782,783,784,785,786,787,788,789,790,791,792,793,794,795,796,797,798,799,800,801,802,803,804,805,806,807,808,809,810,811,812,813,814,815,816,817,818,819,820,821,822,823,824,825,826,827,828,829,830,831,832,833,834,835,836,837,838,839,840,841,842,843,844,845,846,847,848,849,850,851,852,853,854,855,856,857,858,859,860,861,862,863,864,865,866,867,868,869,870,871,872,873,874,875,876,877,878,879,880,881,882,883,884,885,886,887,888,889,890,891,892,893,894,895,896,897,898,899,900,901,902,903,904,905,906,907,908,909,910,911,912,913,914,915,916,917,918,919,920,921,922,923,924,925,926,927,928,929,930,931,932,933,934,935,936,937,938,939,940,941,942,943,944,945,946,947,948,949,950,951,952,953,954,955,956,957,958,959,960,961,962,963,964,965,966,967,968,969,970,971,972,973,974,975,976,977,978,979,980,981,982,983,984,985,986,987,988,989,990,991,992,993,994,995,996,997,998,999,1000,1001,1002,1003,1004,1005,1006,1007,1008,1009,1010,1011,1012,1013,1014,1015,1016,1017,1018,1019,1020,1021,1022,1023,1024,1025,1026,1027,1028,1029,1030,1031,1032,1033,1034,1035,1036,1037,1038,1039,1040,1041,1042,1043,1044,1045,1046,1047,1048,1049,1050,1051,1052,1053,1054,1055,1056,1057,1058,1059,1060,1061,1062,1063,1064,1065,1066,1067,1068,1069,1070,1071,1072,1073,1074,1075,1076,1077,1078,1079,1080,1081,1082,1083,1084,1085,1086,1087,1088,1089,1090,1091,1092,1093,1094,1095,1096,1097,1098,1099,1100,1101,1102,1103,1104,1105,1106,1107,1108,1109,1110,1111,1112,1113,1114,1115,1116,1117,1118,1119,1120,1121,1122,1123,1124,1125,1126,1127,1128,1129,1130,1131,1132,1133,1134,1135,1136,1137,1138,1139,1140,1141,1142,1143,1144,1145,1146,1147,1148,1149,1150,1151,1152,1153,1154,1155,1156,1157,1158,1159,1160,1161,1162,1163,1164,1165,1166,1167,1168,1169,1170,1171,1172,1173,1174,1175,1176,1177,1178,1179,1180,1181,1182,1183,1184,1185,1186,1187,1188,1189,1190,1191,1192,1193,1194,1195,1196,1197,1198,1199,1200,1201,1202,1203,1204,1205,1206,1207,1208,1209,1210,1211,1212,1213,1214,1215,1216,1217,1218,1219,1220,1221,1222,1223,1224,1225,1226,1227,1228,1229,1230,1231,1232,1233,1234,1235,1236,1237,1238,1239,1240,1241,1242,1243,1244,1245,1246,1247,1248,1249,1250,1251,1252,1253,1254,1255,1256,1257,1258,1259,1260,1261,1262,1263,1264,1265,1266,1267,1268,1269,1270,1271,1272,1273,1274,1275,1276,1277,1278,1279,1280,1281,1282,1283,1284,1285,1286,1287,1288,1289,1290,1291,1292,1293,1294,1295,1296,1297,1298,1299,1300,1301,1302,1303,1304,1305,1306,1307,1308,1309,1310,1311,1312,1313,1314,1315,1316,1317,1318,1319,1320,1321,1322,1323,1324,1325,1326,1327,1328,1329,1330,1331,1332,1333,1334,1335,1336,1337,1338,1339,1340,1341,1342,1343,1344,1345,1346,1347,1348,1349,1350,1351,1352,1353,1354,1355,1356,1357,1358,1359,1360,1361,1362,1363,1364,1365,1366,1367,1368,1369,1370,1371,1372,1373,1374,1375,1376,1377,1378,1379,1380,1381,1382,1383,1384,1385,1386,1387,1388,1389,1390,1391,1392,1393,1394,1395,1396,1397,1398,1399,1400,1401,1402,1403,1404,1405,1406,1407,1408,1409,1410,1411,1412,1413,1414,1415,1416,1417,1418,1419,1420,1421,1422,1423,1424,1425,1426,1427,1428,1429,1430,1431,1432,1433,1434,1435,1436,1437,1438,1439,1440,1441,1442,1443,1444,1445,1446,1447,1448,1449,1450,1451,1452,1453,1454,1455,1456,1457,1458,1459,1460,1461,1462,1463,1464,1465,1466,1467,1468,1469,1470,1471,1472,1473,1474,1475,1476,1477,1478,1479,1480,1481,1482,1483,1484,1485,1486,1487,1488,1489,1490,1491,1492,1493,1494,1495,1496,1497,1498,1499,1500,1501,1502,1503,1504,1505,1506,1507,1508,1509,1510,1511,1512,1513,1514,1515,1516,1517,1518,1519,1520,1521,1522,1523,1524,1525,1526,1527,1528,1529,1530,1531,1532,1533,1534,1535,1536,1537,1538,1539,1540,1541,1542,1543,1544,1545,1546,1547,1548,1549,1550,1551,1552,1553,1554,1555,1556,1557,1558,1559,1560,1561,1562,1563,1564,1565,1566,1567,1568,1569,1570,1571,1572,1573,1574,1575,1576,1577,1578,1579,1580,1581,1582,1583,1584,1585,1586,1587,1588,1589,1590,1591,1592,1593,1594,1595,1596,1597,1598,1599,1600,1601,1602,1603,1604,1605,1606,1607,1608,1609,1610,1611,1612,1613,1614,1615,1616,1617,1618,1619,1620,1621,1622,1623,1624,1625,1626,1627,1628,1629,1630,1631,1632,1633,1634,1635,1636,1637,1638,1639,1640,1641,1642,1643,1644,1645,1646,1647,1648,1649,1650,1651,1652,1653,1654,1655,1656,1657,1658,1659,1660,1661,1662,1663,1664,1665,1666,1667,1668,1669,1670,1671,1672,1673,1674,1675,1676,1677,1678,1679,1680,1681,1682,1683,1684,1685,1686,1687,1688,1689,1690,1691,1692,1693,1694,1695,1696,1697,1698,1699,1700,1701,1702,1703,1704,1705,1706,1707,1708,1709,1710,1711,1712,1713,1714,1715,1716,1717,1718,1719,1720,1721,1722,1723,1724,1725,1726,1727,1728,1729,1730,1731,1732,1733,1734,1735,1736,1737,1738,1739,1740,1741,1742,1743,1744,1745,1746,1747,1748,1749,1750,1751,1752,1753,1754,1755,1756,1757,1758,1759,1760,1761,1762,1763,1764,1765,1766,1767,1768,1769,1770,1771,1772,1773,1774,1775,1776,1777,1778,1779,1780,1781,1782,1783,1784,1785,1786,1787,1788,1789,1790,1791,1792,1793,1794,1795,1796,1797,1798,1799,1800,1801,1802,1803,1804,1805,1806,1807,1808,1809,1810,1811,1812,1813,1814,1815,1816,1817,1818,1819,1820,1821,1822,1823,1824,1825,1826,1827,1828,1829,1830,1831,1832,1833,1834,1835,1836,1837,1838,1839,1840,1841,1842,1843,1844,1845,1846,1847,1848,1849,1850,1851,1852,1853,1854,1855,1856,1857,1858,1859,1860,1861,1862,1863,1864,1865,1866,1867,1868,1869,1870,1871,1872,1873,1874,1875,1876,1877,1878,1879,1880,1881,1882,1883,1884,1885,1886,1887,1888,1889,1890,1891,1892,1893,1894,1895,1896,1897,1898,1899,1900,1901,1902,1903,1904,1905,1906,1907,1908,1909,1910,1911,1912,1913,1914,1915,1916,1917,1918,1919,1920,1921,1922,1923,1924,1925,1926,1927,1928,1929,1930,1931,1932,1933,1934,1935,1936,1937,1938,1939,1940,1941,1942,1943,1944,1945,1946,1947,1948,1949,1950,1951,1952,1953,1954,1955,1956,1957,1958,1959,1960,1961,1962,1963,1964,1965,1966,1967,1968,1969,1970,1971,1972,1973,1974,1975,1976,1977,1978,1979,1980,1981,1982,1983,1984,1985,1986,1987,1988,1989,1990,1991,1992,1993,1994,1995,1996,1997,1998,1999,2000,2001,2002,2003,2004,2005,2006,2007,2008,2009,2010,2011,2012,2013,2014,2015,2016,2017,2018,2019,2020,2021,2022,2023,2024,2025,2026,2027,2028,2029,2030,2031,2032,2033,2034,2035,2036,2037,2038,2039,2040,2041,2042,2043,2044,2045,2046,2047,2048,2049,2050,2051,2052,2053,2054,2055,2056,2057,2058,2059,2060,2061,2062,2063,2064,2065,2066,2067,2068,2069,2070,2071,2072,2073,2074,2075,2076,2077,2078,2079,2080,2081,2082,2083,2084,2085,2086,2087,2088,2089,2090,2091,2092,2093,2094,2095,2096,2097,2098,2099,2100,2101,2102,2103,2104,2105,2106,2107,2108,2109,2110,2111,2112,2113,2114,2115,2116,2117,2118,2119,2120,2121,2122,2123,2124,2125,2126,2127,2128,2129,2130,2131,2132,2133,2134,2135,2136,2137,2138,2139,2140,2141,2142,2143,2144,2145,2146,2147,2148,2149,2150,2151,2152,2153,2154,2155,2156,2157,2158,2159,2160,2161,2162,2163,2164,2165,2166,2167,2168,2169,2170,2171,2172,2173,2174,2175,2176,2177,2178,2179,2180,2181,2182,2183,2184,2185,2186,2187,2188,2189,2190,2191,2192,2193,2194,2195,2196,2197,2198,2199,2200,2201,2202,2203,2204,2205,2206,2207,2208,2209,2210,2211,2212,2213,2214,2215,2216,2217,2218,2219,2220,2221,2222,2223,2224,2225,2226,2227,2228,2229,2230,2231,2232,2233,2234,2235,2236,2237,2238,2239,2240,2241,2242,2243,2244,2245,2246,2247,2248,2249,2250,2251,2252,2253,2254,2255,2256,2257,2258,2259,2260,2261,2262,2263,2264,2265,2266,2267,2268,2269,2270,2271,2272,2273,2274,2275,2276,2277,2278,2279,2280,2281,2282,2283,2284,2285,2286,2287,2288,2289,2290,2291,2292,2293,2294,2295,2296,2297,2298,2299,2300,2301,2302,2303,2304,2305,2306,2307,2308,2309,2310,2311,2312,2313,2314,2315,2316,2317,2318,2319,2320,2321,2322,2323,2324,2325,2326,2327,2328,2329,2330,2331,2332,2333,2334,2335,2336,2337,2338,2339,2340,2341,2342,2343,2344,2345,2346,2347,2348,2349,2350,2351,2352,2353,2354,2355,2356,2357,2358,2359,2360,2361,2362,2363,2364,2365,2366,2367,2368,2369,2370,2371,2372,2373,2374,2375,2376,2377,2378,2379,2380,2381,2382,2383,2384,2385,2386,2387,2388,2389,2390,2391,2392,2393,2394,2395,2396,2397,2398,2399,2400,2401,2402,2403,2404,2405,2406,2407,2408,2409,2410,2411,2412,2413,2414,2415,2416,2417,2418,2419,2420,2421,2422,2423,2424,2425,2426,2427,2428,2429,2430,2431,2432,2433,2434,2435,2436,2437,2438,2439,2440,2441,2442,2443,2444,2445,2446,2447,2448,2449,2450,2451,2452,2453,2454,2455,2456,2457,2458,2459,2460,2461,2462,2463,2464,2465,2466,2467,2468,2469,2470,2471,2472,2473,2474,2475,2476,2477,2478,2479,2480,2481,2482,2483,2484,2485,2486,2487,2488,2489,2490,2491,2492,2493,2494,2495,2496,2497,2498,2499,2500,2501,2502,2503,2504,2505,2506,2507,2508,2509,2510,2511,2512,2513,2514,2515,2516,2517,2518,2519,2520,2521,2522,2523,2524,2525,2526,2527,2528,2529,2530,2531,2532,2533,2534,2535,2536,2537,2538,2539,2540,2541,2542,2543,2544,2545,2546,2547,2548,2549,2550,2551,2552,2553,2554,2555,2556,2557,2558,2559,2560,2561,2562,2563,2564,2565,2566,2567,2568,2569,2570,2571,2572,2573,2574,2575,2576,2577,2578,2579,2580]
["Introducir la información de acuerdo a las unidades señaladas en el periodo (mes o año).\n     \n\n","Año-Mes"]
[null,"Precio petróleo ($/b)"]
[null,"Precio gas ($/Mpc)"]
[null,"Precio condensados ($/b)"]
[]
[null,"Tipo de Cambio (MXP/US$)"]
[null,"Inflación Consumidor (%)"]
[null,"Inflación Productor (%)"]
[null,"Tasa de Descuento (%)"]
[]
[null,"Área Devuelta (%)"]
[]
[]
[null,{"$f":"\"Producción \"&IF(C19=1,\"Aceite (MMb/año)\",\"Aceite (Mb/mes)\")","v":"Producción Aceite (MMb/año)"}]
[null,{"$f":"\"Producción \"&IF(C19=1,\"Gas (MMMpc/año)\",\"Gas (MMpc/mes)\")","v":"Producción Gas (MMMpc/año)"}]
[null,{"$f":"\"Producción \"&IF(C19=1,\"Gas para venta (MMMpc/año)\",\"Gas para venta (MMpc/mes)\")","v":"Producción Gas para venta (MMMpc/año)"}]
[null,{"$f":"\"Producción \"&IF(C19=1,\"Condensados (MMb/año)\",\"Condensados (Mb/mes)\")","v":"Producción Condensados (MMb/año)"}]
[]
[]
[null,"Costos que se deprecian al 100 % (MM US$)"]
[null,"Costos que se deprecian al 25 % (MM US$)"]
[null,"Costos que se deprecian al 10 % (MM US$)"]
[]
[null,"Costos de Abandono (MM US$)"]
[]
[]
[null,"Información adicional de la evaluación económica"]

{"sheet":"Memoria de Cálculo","index":2,"n_rows":92,"n_cols":796,"rows_kept":92,"cut":false,"hidden":false,"merged":[[7,0,7,4],[67,0,76,0],[78,0,92,0],[14,0,22,0],[23,0,39,0],[13,0,13,1],[40,0,49,0],[50,0,66,0]]}
[]
[]
[]
[]
[]
[]
[]
["Tabla I.10. Estudio Viabilidad"]
[null,null,"Total"]
[null,null,null,"Trimestre",1,1,1,2,2,2,3,3,3,{"$f":"+K10+1","v":4},{"$f":"+L10+1","v":4},4,5,5,5,6,6,6,{"$f":"+T10+1","v":7},7,7,8,8,8,9,9,{"$f":"+AB10+1","v":9},{"$f":"+AC10+1","v":10},{"$f":"+AD10+1","v":10},{"$f":"+AE10+1","v":10},11,11,11,12,12,12,13,13,13,14,14,14,15,15,15,16,16,16,17,17,17,18,18,18,19,19,19,20,20,20,21,21,21,22,22,22,23,23,23,24,24,24,25,25,25,26,26,26,27,27,27,28,{"$f":"+CF10+1","v":28},28,29,29,29,30,30,30,31,31,31,32,32,32,33,33,33,34,34,34,35,35,35,36,36,36,37,37,37,38,38,38,39,39,39,40,40,40,41,41,41,42,42,42,43,43,43,44,44,44,45,45,45,46,46,46,47,47,47,48,48,48,49,49,{"$f":"+ER10+1","v":49},50,50,50,51,51,51,52,52,52,53,53,53,54,54,54,55,55,55,56,56,56,57,57,57,58,58,58,59,59,59,60,60,60,61,61,61,62,62,62,63,63,63,64,64,64,65,65,65,66,66,66,67,67,67,68,68,68,69,69,69,70,70,70,{"$f":"+HD10+1","v":71},71,71,72,72,72,73,73,73,74,74,74,75,75,75,76,76,76,77,77,77,78,78,78,79,79,79,80,80,80,81,81,81,82,82,82,83,83,83,84,84,84,85,85,85,86,86,86,87,87,87,88,88,88,89,89,89,90,90,90,91,91,91,92,{"$f":"+JP10+1","v":92},92,93,93,93,94,94,94,95,95,95,96,96,96,97,97,97,98,98,98,99,99,99,100,100,100,101,101,101,102,102,102,103,103,103,104,104,104,105,105,105,106,106,106,107,107,107,108,108,108,109,109,109,110,110,110,111,111,111,112,112,112,113,113,{"$f":"+MB10+1","v":113},114,114,114,115,115,115,116,116,116,117,117,117,118,118,118,119,119,119,120,120,120,121,121,121,122,122,122,123,123,123,124,124,124,125,125,125,126,126,126,127,127,127,128,128,128,129,129,129,130,130,130,131,131,131,132,132,132,133,133,133,134,134,134,{"$f":"+ON10+1","v":135},135,135,136,136,136,137,137,137,138,138,138,139,139,139,140,140,140,{"$f":"+PF10+1","v":141},141,141,142,142,142,143,143,143,144,144,144,145,145,145,146,146,146,147,147,147,148,148,148,149,149,149,150,150,150,151,151,151,152,152,152,153,153,153,154,154,154,155,155,155,156,156,156,157,157,157,158,158,158,159,159,159,160,160,160,161,161,161,162,{"$f":"+RR10+1","v":162},162,163,163,163,164,164,164,165,165,165,166,166,166,167,167,167,168,168,168,169,169,169,170,170,170,171,171,171,172,172,172,173,173,173,174,174,174,175,175,175,176,176,176,177,177,177,178,178,178,179,179,179,180,180,180,181,181,181,182,182,182,183,183,{"$f":"+UD10+1","v":183},184,184,184,185,185,185,186,186,186,187,187,187,188,188,188,189,189,189,190,190,190,191,191,191,192,192,192,193,193,193,194,194,194,195,195,195,196,196,196,197,197,197,198,198,198,199,199,199,200,200,200,201,201,201,202,202,202,203,203,203,204,204,204,{"$f":"+WP10+1","v":205},205,205,206,206,206,207,207,207,208,208,208,209,209,209,210,210,210,211,211,211,212,212,212,213,213,213,214,214,214,215,215,215,216,216,216,217,217,217,218,218,218,219,219,219,220,220,220,221,221,221,222,222,222,223,223,223,224,224,224,225,225,225,226,{"$f":"+ZB10+1","v":226},226,227,227,227,228,228,228,229,229,229,230,230,230,231,231,231,232,232,232,233,233,233,234,234,234,235,235,235,236,236,236,237,237,237,238,238,238,239,239,239,240,240,240,241,241,241,242,242,242,243,243,243,244,244,244,245,245,245,246,246,246,247,247,{"$f":"+ABN10+1","v":247},248,248,248,249,249,249,250,250,250,251,251,251,252,252,252,253,253,253,254,254,254,255,255,255,256,256,256,257,257,257,258,258,258,259,259,259,260,260,260,261,261,261,262,262,262,263,263,263,264,264,264]
[]
[null,{"$f":"+IF(Insumos!C19=1,\"Año\",\"Mes\")","v":"Año"},null,null,1,2,3,4,5,6,7,8,9,10,11,12,13,14,15,16,17,18,19,20,21,22,23,24,25,26,27,28,29,30,31,32,33,34,35,36,37,38,39,40,41,42,43,44,45,46,47,48,49,50,51,52,53,54,55,56,57,58,59,60,61,62,63,64,65,66,67,68,69,70,71,72,73,74,75,76,77,78,79,80,81,82,83,84,85,86,87,88,89,90,91,92,93,94,95,96,97,98,99,100,101,102,103,104,105,106,107,108,109,110,111,112,113,114,115,116,117,118,119,120,121,122,123,124,125,126,127,128,129,130,131,132,133,134,135,136,137,138,139,140,141,142,143,144,145,146,147,148,149,150,151,152,153,154,155,156,157,158,159,160,161,162,163,164,165,166,167,168,169,170,171,172,173,174,175,176,177,178,179,180,181,182,183,184,185,186,187,188,189,190,191,192,193,194,195,196,197,198,199,200,201,202,203,204,205,206,207,208,209,210,211,212,213,214,215,216,217,218,219,220,221,222,223,224,225,226,227,228,229,230,231,232,233,234,235,236,237,238,239,240,241,242,243,244,245,246,247,248,249,250,251,252,253,254,255,256,257,258,259,260,261,262,263,264,265,266,267,268,269,270,271,272,273,274,275,276,277,278,279,280,281,282,283,284,285,286,287,288,289,290,291,292,293,294,295,296,297,298,299,300,301,302,303,304,305,306,307,308,309,310,311,312,313,314,315,316,317,318,319,320,321,322,323,324,325,326,327,328,329,330,331,332,333,334,335,336,337,338,339,340,341,342,343,344,345,346,347,348,349,350,351,352,353,354,355,356,357,358,359,360,361,362,363,364,365,366,367,368,369,370,371,372,373,374,375,376,377,378,379,380,381,382,383,384,385,386,387,388,389,390,391,392,393,394,395,396,397,398,399,400,401,402,403,404,405,406,407,408,409,410,411,412,413,414,415,416,417,418,419,420,{"$f":"+PH12+1","v":421},{"$f":"+PI12+1","v":422},{"$f":"+PJ12+1","v":423},{"$f":"+PK12+1","v":424},{"$f":"+PL12+1","v":425},{"$f":"+PM12+1","v":426},427,428,429,430,431,{"$f":"+PS12+1","v":432},{"$f":"+PT12+1","v":433},{"$f":"+PU12+1","v":434},435,436,437,438,439,440,441,442,443,444,445,446,447,448,449,450,451,452,453,454,455,456,457,458,459,460,461,462,463,464,465,466,467,468,469,470,471,472,473,474,475,476,477,478,479,480,481,482,483,484,485,486,{"$f":"+RV12+1","v":487},488,489,490,491,492,493,494,495,496,497,498,499,500,501,502,503,504,505,506,507,508,509,510,511,512,513,514,515,516,517,518,519,520,521,522,523,524,525,526,527,528,529,530,531,532,533,534,535,536,537,538,539,540,541,542,543,544,545,546,547,548,549,550,{"$f":"+UH12+1","v":551},552,553,554,555,556,557,558,559,560,561,562,563,564,565,566,567,568,569,570,571,572,573,574,575,576,577,578,579,580,581,582,583,584,585,586,587,588,589,590,591,592,593,594,595,596,597,598,599,600,601,602,603,604,605,606,607,608,609,{"$f":"+WO12+1","v":610},{"$f":"+WP12+1","v":611},612,613,614,615,616,617,618,619,620,{"$f":"+WZ12+1","v":621},{"$f":"+XA12+1","v":622},{"$f":"+XB12+1","v":623},624,625,626,627,628,629,630,631,632,633,634,635,636,637,638,639,640,641,642,643,644,645,646,647,648,649,650,651,652,653,654,655,656,657,658,659,{"$f":"+YM12+1","v":660},{"$f":"+YN12+1","v":661},662,663,664,665,666,667,668,669,670,{"$f":"+YX12+1","v":671},{"$f":"+YY12+1","v":672},{"$f":"+YZ12+1","v":673},674,675,676,677,678,679,680,681,682,683,684,685,686,687,{"$f":"+ZO12+1","v":688},{"$f":"+ZP12+1","v":689},690,691,692,693,694,695,696,697,698,{"$f":"+ZZ12+1","v":699},{"$f":"+AAA12+1","v":700},{"$f":"+AAB12+1","v":701},702,703,704,705,706,707,708,709,710,711,712,713,{"$f":"+AAO12+1","v":714},{"$f":"+AAP12+1","v":715},716,717,718,719,720,{"$f":"+AAV12+1","v":721},722,723,724,725,726,{"$f":"+ABB12+1","v":727},728,729,730,731,732,733,734,735,736,{"$f":"+ABL12+1","v":737},738,739,740,741,742,743,744,745,746,747,748,749,750,751,752,753,754,755,756,757,758,759,760,761,762,763,764,765,766,767,768,769,770,771,772,773,774,775,776,777,778,779,780,781,782,783,784,785,786,787,788,789,790,791,792]
[]
["Ingresos a favor del Estado:"]
["Contraprestaciones a Contratos de Licencia y de Producción Compartida "]
[null,"Contratos"]
[]
[null,"Art. 23 LISH. Cuota Contractual para la Fase Exploratoria (MM US$)"]
[null,"Art. 24 LISH. Regalía al Valor Contractual del Petróleo (MM US$)"]
[null,"Art. 24 LISH. Regalía al Valor Contractual del Gas Natural Asociado (MM US$)"]
[null,"Art. 24 LISH. Regalía al Valor Contractual del Gas Natural No Asociado (MM US$)"]
[null,"Art. 24 LISH. Regalía al Valor Contractual de los Condensados (MM US$)"]
[]
["Contraprestaciones aplicable a Contratos de Licencia"]
[null,"Licencias"]
[null,"Art. 7 LISH. Bono a la firma (MM US$)"]
[null,"Art. 6-IV LISH. Tasa al Valor Contractual de los Hidrocarburos:"]
[null,"Tasa de regalía adicional mínima (R0) establecida en el contrato (%)"]
[null,"Valor de la regalía adicional mínima (Tasa de regalía adicional mínima por el Valor Contractual de los Hidrocarburos MM US$)"]
[null,"Art. 10 LISH. Ajuste a la Tasa básica al Valor Contractual de los Hidrocarburos:"]
[null,"Mecanismo de Ajuste (Anexo 3 del Contrato):"]
[null,"Factor de Rentabilidad (FR)"]
[null,"Factor de Rentabilidad (periodo anterior)"]
[null,"Coeficiente de Resultado Operativo (CRO)"]
[null,"Coeficiente de Resultado Operativo (periodo anterior)"]
[null,"Factor de ajuste (AR) (%)"]
[null,"Valor de la Regalía adicional por mecanismo de ajuste (MM US$)"]
[]
[null,"Total las Regalías adicionales (suma de Regalía adicional mínima, más Regalía adicional por mecanismo de ajuste) (MM US$)"]
[]
["Contraprestaciones aplicable a Contratos de\nProducción Compartida"]
[null,"Producción Compartida"]
[null,"Art. 11-c) LISH. Determinación (%) Utilidad Operativa"]
[null,"Art. 17 LISH. Utilidad Operativa (MM US$)"]
[]
[null,"Art. 16 LISH. Recuperación de Costos Elegibles (MM US$)"]
[null,"Acarreo de Costos Elegibles (MM US$)"]
[]
[null,"Utilidad operativa a favor del Estado (MM US$)"]
[]
["Derechos aplicables a Asignaciones"]
[null,"Asignaciones"]
[null,"Art 44 LISH. Derecho de Extracción al valor del Petróleo (MM US$)"]
[null,"Art 44 LISH. Derecho de Extracción al valor del Gas Natural Asociado (MM US$)"]
[null,"Art 44 LISH. Derecho de Extracción al valor del Gas Natural No Asociado (MM US$)"]
[null,"Art 44 LISH. Derecho de Extracción al valor de los Condensados (MM US$)"]
[]
[null,"Art 45 LISH. Derecho de Exploración de Hidrocarburos (MM US$)"]
[]
[null,"Art 39 LISH. Derecho de Utilidad Compartida (DUC):"]
[null,"Art 40 LISH. Deducciones DUC (al 100(%)) (MM US$)"]
[null,"Art 40 LISH. Deducciones DUC (al 25(%)) (MM US$)"]
[null,"Art 40 LISH. Deducciones DUC (al 10(%)) (MM US$)"]
[null,"Art 41 LISH. Límite deducciones (MM US$)"]
[null,"Acarreo Deducciones (MM US$)"]
[null,"Derecho de Utilidad Compartida (DUC)  (MM US$)"]
[]
["Impuestos aplicables a Contratos de Licencia y de Producción Compartida y a Asignaciones"]
[null,"Impuestos"]
[null,"Art. 32 LISH. Pago Impuesto Sobre la Renta:"]
[null,"Ingreso Gravable (MM US$)"]
[null,"Pérdidas Acumuladas (MM US$)"]
[null,"Ingreso gravable del Periodo (MM US$)"]
[null,"Art. 46 LISH. ISR (MM US$)"]
[]
[null,"Art 54 LISH. Impuesto por la Actividad de Exploración y Extracción de Hidrocarburos (IEEH) (MM US$)"]
[]
[]
["Resultados","Ingresos del Estado"]
[null,"Contraprestaciones pagadas a favor del Estado ((Cuota contractual + Regalías + (Regalías adicionales o Utilidad Operativa a favor del Estado)) o Derechos) (MM US$)"]
[null,"Impuestos (ISR + IEEH) (MM US$)"]
[null,"Total de ingresos a favor del Estado "]
[]
[null,"Resultado del proyecto"]
[null,"Ingresos operativos (Valor Contractual de los Hidrocarburos menos la suma del capex, opex y costos de abandono) (MM US$)"]
[null,"Ingresos operativos descontados (MM US$)"]
[null,"Limite económico"]
[]
[null,"Ingresos del Contratista"]
[null,"Producción compartida (Valor Contractual de los Hidrocarburos - Costos Totales + Costos Recuperados - Contraprestaciones a favor del Estado - Impuestos)"]
[null,"Licencias (Valor Contractual de los Hidrocarburos - Costos Totales - Contraprestaciones a favor del Estado - Impuestos)"]
[null,"Asignaciones (Valor Contractual de los Hidrocarburos - Costos Totales - Derechos - Impuestos)"]

{"sheet":"Resultados","index":3,"n_rows":17,"n_cols":5,"rows_kept":17,"cut":false,"hidden":false,"merged":[[13,3,13,4],[9,1,10,1],[9,2,10,2],[9,3,10,3],[6,0,6,4]]}
[]
[]
[]
[]
[]
[]
["Tabla I.10. Estudio Viabilidad"]
[]
[]
[null,"Resultados","Unidades","Antes de derechos, contraprestaciones e impuestos a favor del Estado","Después de derechos, contraprestaciones e impuestos a favor del Estado"]
[null,null,null,null,"Contratista/Asignatario"]
[null,"Flujo de Efectivo","MM US$"]
[null,"VPN","MM US$"]
[null,"VPI","MM US$"]
[null,"VPN/VPI","$/$"]
[null,"Relación Beneficio/Costo","$/$"]
[null,"TIR","%"]